bitfinex/quotes_BTCUSD_20250303
["timestamp","ask_amount","ask_price","bid_price","bid_amount"]
[1740998085252,0.162413,92357.0,92348.0,0.216569]
[1740998085458,0.162413,92357.0,92351.0,0.162423]
[1740998085659,0.001,92365.0,92343.0,0.216583]
[1740998085847,0.162405,92362.0,92354.0,0.162417]
[1740998086055,0.216532,92365.0,92354.0,0.162416]
[1740998086263,0.001,92366.0,92343.0,0.216583]
[1740998086391,0.00816325,92374.0,92365.0,0.162399]
[1740998086587,0.162392,92370.0,92362.0,0.162402]
[1740998086786,0.162392,92370.0,92359.0,0.216544]
[1740998086787,0.003,92365.0,92350.0,0.18084757]
[1740998086997,0.1624,92364.0,92350.0,0.18084757]
[1740998087345,0.003,92365.0,92350.0,0.18084757]
[1740998087650,0.165399,92365.0,92352.0,0.216562]
[1740998087852,0.166399,92365.0,92354.0,0.216558]
[1740998088048,0.163399,92365.0,92354.0,0.216558]
[1740998088251,0.001,92365.0,92358.0,0.162411]
[1740998088455,0.162395,92368.0,92350.0,0.18084757]
[1740998088664,0.004,92374.0,92357.0,0.21655]
[1740998088827,0.162401,92364.0,92350.0,0.18084757]
[1740998089032,0.162401,92364.0,92357.0,0.162413]
[1740998089230,0.162401,92364.0,92350.0,0.18084757]
[1740998089231,0.002,92365.0,92358.0,0.162411]
[1740998089610,0.162401,92364.0,92356.0,0.162415]
[1740998090014,0.001,92364.0,92357.0,0.162413]
[1740998090443,0.001,92364.0,92361.0,0.162405]
[1740998090861,0.001,92364.0,92350.0,0.18084757]
[1740998091092,0.001,92364.0,92360.0,0.162407]
[1740998091285,0.001,92364.0,92350.0,0.18084757]
[1740998091463,0.001,92364.0,92351.0,0.0794]
[1740998091784,0.162405,92362.0,92351.0,0.216564]
[1740998092010,0.216532,92365.0,92351.0,0.216564]
[1740998092185,0.216511,92374.0,92354.0,0.162418]
[1740998092426,0.001,92364.0,92346.0,0.01454085]
[1740998092608,0.001,92364.0,92341.0,0.3]
[1740998092809,0.00046057,92375.0,92341.0,0.3]
[1740998093011,0.001,92365.0,92362.0,0.162403]
[1740998093213,0.001,92365.0,92350.0,0.18084757]
[1740998093420,0.001,92365.0,92351.0,0.00151593]
[1740998093634,0.00046057,92375.0,92355.0,0.162415]
[1740998093868,0.163401,92364.0,92355.0,0.162415]
[1740998094203,0.163401,92364.0,92353.0,0.216559]
[1740998094402,0.217536,92364.0,92353.0,0.162418]
[1740998094722,0.162406,92361.0,92342.0,0.0001704]
[1740998094929,0.01698686,92362.0,92351.0,0.162423]
[1740998095101,0.23352686,92362.0,92351.0,0.162423]
[1740998095303,0.162408,92360.0,92351.0,0.162423]
[1740998095505,0.01698686,92362.0,92342.0,0.0001704]
[1740998095773,0.162411,92358.0,92349.0,0.162426]
[1740998095910,0.162413,92357.0,92348.0,0.162429]
[1740998096344,0.216543,92360.0,92349.0,0.162426]
[1740998096545,0.162411,92359.0,92350.0,0.162425]
[1740998096971,0.162411,92359.0,92342.0,0.0001704]
[1740998097169,0.216539,92362.0,92351.0,0.162423]
[1740998097381,0.216518,92371.0,92351.0,0.001]
[1740998097571,0.162411,92359.0,92351.0,0.001]
[1740998097736,0.162413,92357.0,92348.0,0.162429]
[1740998098086,0.162413,92357.0,92350.0,0.001]
[1740998098295,0.162413,92357.0,92349.0,0.162427]
[1740998098644,0.162415,92356.0,92342.0,0.2167564]
[1740998099063,0.162413,92358.0,92348.0,0.164429]
[1740998099425,0.162413,92357.0,92349.0,0.001]
[1740998099989,0.162413,92357.0,92348.0,0.1645993]
[1740998100185,0.01698755,92356.0,92348.0,0.1655993]
[1740998100381,0.01698755,92356.0,92348.0,0.0011703]
[1740998101191,0.162418,92355.0,92348.0,0.0011703]
[1740998101388,0.162427,92350.0,92348.0,0.0031703]
[1740998101756,0.162427,92349.0,92348.0,0.0021703]
[1740998102085,0.23354055,92356.0,92348.0,0.0011703]
[1740998102287,0.01698755,92356.0,92348.0,0.0011703]
[1740998102494,0.162427,92349.0,92348.0,0.0001703]
[1740998102993,0.216557,92355.0,92348.0,0.0011703]
[1740998103191,0.0281288,92356.0,92348.0,0.0011703]
[1740998103554,0.162427,92349.0,92348.0,0.0011703]
[1740998104286,0.162427,92349.0,92348.0,0.0031703]
[1740998104496,0.544127,92349.0,92348.0,0.0031703]
[1740998104682,0.593527,92349.0,92348.0,0.0021703]
[1740998105058,0.593527,92349.0,92348.0,0.0011703]
[1740998105260,0.594527,92349.0,92348.0,0.0011703]
[1740998105459,0.594527,92349.0,92348.0,0.0001703]
[1740998105682,0.594527,92349.0,92318.0,0.16248]
[1740998105683,0.3,92348.0,92318.0,0.16248]
[1740998105882,0.162465,92328.0,92318.0,0.16248]
[1740998106062,0.162463,92329.0,92314.0,0.216651]
[1740998106488,0.16246,92331.0,92321.0,0.162475]
[1740998106681,0.3,92346.0,92312.0,0.0001704]
[1740998106881,0.216579,92345.0,92312.0,0.0001704]
[1740998107084,0.3,92346.0,92312.0,0.00057128]
[1740998107302,0.162463,92329.0,92319.0,0.162479]
[1740998107709,0.216581,92344.0,92317.0,0.216644]
[1740998107913,0.216603,92335.0,92312.0,0.00057128]
[1740998108069,0.162455,92334.0,92324.0,0.16247]
[1740998108404,0.162455,92334.0,92321.0,0.216633]
[1740998108405,0.162461,92330.0,92321.0,0.162475]
[1740998108906,0.162462,92329.0,92320.0,0.162477]
[1740998109270,0.162462,92329.0,92324.0,0.001]
[1740998109494,0.01699278,92327.0,92324.0,0.001]
[1740998110588,0.01699278,92327.0,92321.0,0.163476]
[1740998110784,0.01699278,92327.0,92321.0,0.001]
[1740998111135,0.01699278,92327.0,92321.0,0.002]
[1740998111402,0.01699278,92327.0,92315.0,0.162485]
[1740998111569,0.162467,92326.0,92316.0,0.162485]
[1740998111799,0.162471,92324.0,92313.0,0.162489]
[1740998112001,0.162471,92324.0,92313.0,0.16249]
[1740998112202,0.02786621,92327.0,92312.0,0.00057128]
[1740998112617,0.02786621,92327.0,92315.0,0.0001703]
[1740998112777,0.24448821,92327.0,92315.0,0.0001703]
[1740998112977,0.162469,92325.0,92315.0,0.0001703]
[1740998113176,0.02786621,92327.0,92315.0,0.1626563]
[1740998113378,0.01699278,92327.0,92315.0,0.0001703]
[1740998113784,0.216623,92326.0,92315.0,0.0001703]
[1740998113992,0.01699278,92327.0,92315.0,0.0001703]
[1740998113993,0.162485,92316.0,92315.0,0.0001703]
[1740998114476,0.216626,92325.0,92315.0,0.0001703]
[1740998114655,0.01699605,92316.0,92315.0,0.0001703]
[1740998115332,0.01699605,92316.0,92315.0,0.0011703]
[1740998115508,0.01699605,92316.0,92315.0,0.0001703]
[1740998115715,0.001,92325.0,92315.0,0.0001703]
[1740998115914,0.001,92316.0,92315.0,0.0001703]
[1740998116117,0.001,92316.0,92315.0,0.1626573]
[1740998116319,0.001,92316.0,92315.0,0.0001703]
[1740998116725,0.001,92316.0,92315.0,0.1626573]
[1740998117195,0.162466,92327.0,92315.0,0.0011703]
[1740998117419,0.00813123,92328.0,92315.0,0.0011703]
[1740998117623,0.3,92333.0,92315.0,0.0001703]
[1740998117882,0.01117499,92333.0,92315.0,0.0021703]
[1740998118062,0.162472,92324.0,92315.0,0.0001703]
[1740998118411,0.5407,92336.0,92315.0,0.0001703]
[1740998118412,0.216626,92325.0,92315.0,0.0001703]
[1740998118649,0.003,92327.0,92315.0,0.0001703]
[1740998118850,0.01699454,92322.0,92315.0,0.0001703]
[1740998119136,0.01699454,92322.0,92321.0,0.244076]
[1740998119620,0.002,92324.0,92316.0,0.162483]
[1740998119821,0.002,92324.0,92315.0,0.0001703]
[1740998120435,0.15628126,92332.0,92320.0,0.162477]
[1740998120638,0.002,92333.0,92320.0,0.162477]
[1740998120814,0.002,92333.0,92315.0,0.0001703]
[1740998121022,0.162468,92326.0,92315.0,0.0001703]
[1740998121202,0.162466,92327.0,92316.0,0.162485]
[1740998121406,0.162467,92327.0,92315.0,0.0001703]
[1740998121604,0.162467,92327.0,92316.0,0.162485]
[1740998121838,0.216607,92333.0,92315.0,0.0001703]
[1740998122173,0.162458,92331.0,92315.0,0.0001703]
[1740998122307,0.01699346,92329.0,92315.0,0.0001703]
[1740998122509,0.01699346,92329.0,92324.0,0.16247]
[1740998123135,0.01699346,92329.0,92315.0,0.0001703]
[1740998123353,0.01699346,92329.0,92325.0,0.162469]
[1740998123510,0.002,92333.0,92315.0,0.0001703]
[1740998123713,0.002,92327.0,92315.0,0.0001703]
[1740998123966,0.162482,92318.0,92315.0,0.0001703]
[1740998124193,0.162478,92320.0,92315.0,0.0001703]
[1740998124374,0.083,92335.0,92315.0,0.0001703]
[1740998124685,0.216619,92328.0,92315.0,0.0001703]
[1740998124845,0.162485,92316.0,92315.0,0.0001703]
[1740998125187,0.216614,92330.0,92315.0,0.0021703]
[1740998125391,0.162485,92316.0,92315.0,0.0021703]
[1740998125591,0.162485,92316.0,92315.0,0.0001703]
[1740998127029,0.17948063,92316.0,92315.0,0.0001703]
[1740998127872,0.01699563,92316.0,92315.0,0.0001703]
[1740998128203,0.01799563,92316.0,92315.0,0.0001703]
[1740998128369,0.01999563,92316.0,92315.0,0.0001703]
[1740998128898,0.18148063,92316.0,92315.0,0.0001703]
[1740998129667,0.01899563,92316.0,92315.0,0.0001703]
[1740998129853,0.01699563,92316.0,92315.0,0.0001703]
[1740998130055,0.01899563,92316.0,92315.0,0.0001703]
[1740998130309,0.18148063,92316.0,92315.0,0.0001703]
[1740998130512,0.164485,92316.0,92315.0,0.0001703]
[1740998130719,0.162485,92316.0,92315.0,0.0001703]
[1740998130947,0.163485,92316.0,92315.0,0.0001703]
[1740998131514,0.163485,92316.0,92315.0,0.0011703]
[1740998131971,0.16654517,92316.0,92315.0,0.0011703]
[1740998132587,0.02105562,92316.0,92315.0,0.0011703]
[1740998132789,0.18354062,92316.0,92315.0,0.0011703]
[1740998133240,0.02105562,92316.0,92315.0,0.0011703]
[1740998134202,0.18354062,92316.0,92315.0,0.0011703]
[1740998135742,0.16654517,92316.0,92315.0,0.0011703]
[1740998136342,0.16654517,92316.0,92315.0,0.0001703]
[1740998136553,0.16554517,92316.0,92315.0,0.0001703]
[1740998136760,0.16754517,92316.0,92315.0,0.0001703]
[1740998137305,0.16554517,92316.0,92315.0,0.0001703]
[1740998137642,0.16754517,92316.0,92315.0,0.0001703]
[1740998139105,0.18454064,92316.0,92315.0,0.0001703]
[1740998142224,0.56194064,92316.0,92315.0,0.0001703]
[1740998142403,0.88604064,92316.0,92315.0,0.0001703]
[1740998142611,0.80864064,92316.0,92315.0,0.0001703]
[1740998143654,0.81064064,92316.0,92315.0,0.0001703]
[1740998144269,0.80864064,92316.0,92315.0,0.0001703]
[1740998144447,0.81264064,92316.0,92315.0,0.0001703]
[1740998144650,0.35115564,92316.0,92315.0,0.0001703]
[1740998144892,0.34815564,92316.0,92315.0,0.0001703]
[1740998145451,0.02405564,92316.0,92315.0,0.0001703]
[1740998145657,0.02405564,92316.0,92307.0,0.05161187]
[1740998145658,0.00706017,92316.0,92307.0,0.05161187]
[1740998145860,0.00706017,92316.0,92315.0,0.162487]
[1740998146059,0.004,92316.0,92315.0,0.162487]
[1740998146263,0.002,92316.0,92315.0,0.162487]
[1740998146662,0.005,92316.0,92315.0,0.162487]
[1740998147096,0.25982654,92335.0,92324.0,0.162469]
[1740998147296,0.25982654,92335.0,92325.0,0.162469]
[1740998147297,0.0033328,92328.0,92325.0,0.162469]
[1740998147496,0.0033328,92328.0,92325.0,0.161469]
[1740998147708,0.0033328,92328.0,92325.0,0.162468]
[1740998147956,0.0033328,92328.0,92313.0,0.216654]
[1740998148155,0.0033328,92328.0,92322.0,0.162473]
[1740998148290,0.0033328,92328.0,92324.0,0.162471]
[1740998148504,0.0033328,92328.0,92318.0,0.216642]
[1740998148686,0.0033328,92328.0,92324.0,0.162471]
[1740998148891,0.01699481,92326.0,92324.0,0.162471]
[1740998149086,0.01699481,92326.0,92320.0,0.162476]
[1740998149329,0.003348,92325.0,92315.0,0.0001704]
[1740998149532,0.01699481,92326.0,92315.0,0.0001704]
[1740998149728,0.00368721,92325.0,92317.0,0.162483]
[1740998149935,0.00368721,92325.0,92321.0,0.162476]
[1740998150140,0.00368721,92325.0,92322.0,0.162473]
[1740998150419,0.00368721,92325.0,92322.0,0.162474]
[1740998150566,0.00468721,92325.0,92322.0,0.162474]
[1740998151107,0.00368721,92325.0,92322.0,0.162474]
[1740998151301,0.0003408,92325.0,92321.0,0.162475]
[1740998151501,0.0013408,92325.0,92321.0,0.162475]
[1740998151800,0.00335018,92324.0,92315.0,0.2168174]
[1740998152345,0.00335018,92324.0,92316.0,0.162485]
[1740998152588,0.00335018,92324.0,92317.0,0.162482]
[1740998153009,0.00335018,92324.0,92320.0,0.162478]
[1740998153199,0.00335018,92324.0,92323.0,0.162473]
[1740998153500,0.0003408,92325.0,92324.0,0.162471]
[1740998153807,0.0003408,92325.0,92324.0,0.161471]
[1740998154009,0.0003408,92325.0,92324.0,0.17752818]
[1740998154224,0.0003408,92325.0,92324.0,0.30282818]
[1740998154441,0.0003408,92325.0,92324.0,0.60131185]
[1740998154569,0.0013408,92325.0,92324.0,0.60131185]
[1740998155884,0.0003408,92325.0,92324.0,0.60131185]
[1740998156283,0.0003408,92325.0,92324.0,0.60331185]
[1740998156799,0.0003408,92325.0,92324.0,0.60731185]
[1740998157004,0.0003408,92325.0,92324.0,0.93441185]
[1740998158727,0.0003408,92325.0,92324.0,0.93041185]
[1740998159088,0.0003408,92325.0,92324.0,0.93441185]
[1740998159492,0.0003408,92325.0,92324.0,0.93241185]
[1740998159699,0.0003408,92325.0,92324.0,0.92841185]
[1740998159895,0.0003408,92325.0,92324.0,0.93241185]
[1740998160100,0.0003408,92325.0,92324.0,0.93841185]
[1740998160494,0.0003408,92325.0,92324.0,0.93441185]
[1740998160895,0.0003408,92325.0,92324.0,0.94041185]
[1740998161093,0.0013408,92325.0,92324.0,0.94041185]
[1740998162897,0.0013408,92325.0,92324.0,0.925871]
[1740998163076,0.0013408,92325.0,92324.0,0.94041185]
[1740998163780,0.0013408,92325.0,92324.0,0.925871]
[1740998163916,0.0013408,92325.0,92324.0,0.94041185]
[1740998164784,0.0013408,92325.0,92324.0,0.012]
[1740998165325,0.0013408,92325.0,92324.0,0.18901185]
[1740998165643,0.0013408,92325.0,92324.0,0.26732813]
[1740998165910,0.0013408,92325.0,92324.0,0.25981185]
[1740998166052,0.0003408,92325.0,92324.0,0.25381185]
[1740998166412,0.0003408,92325.0,92324.0,0.25681185]
[1740998166570,0.0003408,92325.0,92324.0,0.25481185]
[1740998166768,0.0003408,92325.0,92324.0,0.25881185]
[1740998167013,0.0003408,92325.0,92324.0,0.30571185]
[1740998167256,0.0013408,92325.0,92324.0,0.30571185]
[1740998167576,0.0003408,92325.0,92324.0,0.25381185]
[1740998167781,0.0003408,92325.0,92324.0,0.17701185]
[1740998168000,0.01833098,92325.0,92324.0,0.18101185]
[1740998168619,0.01833098,92325.0,92324.0,0.18601185]
[1740998168815,0.01833098,92325.0,92324.0,0.18101185]
[1740998169217,0.01833098,92325.0,92324.0,0.18701185]
[1740998170603,0.01833098,92325.0,92324.0,0.18852802]
[1740998171941,0.01833098,92325.0,92324.0,0.48869842]
[1740998172178,0.01833098,92325.0,92324.0,0.48718225]
[1740998172572,0.01833098,92325.0,92324.0,0.89258225]
[1740998172772,8e-07,92325.0,92324.0,0.94148225]
[1740998173138,0.0003406,92369.0,92324.0,0.94148225]
[1740998173139,4.7e-07,92342.0,92341.0,0.52588185]
[1740998173345,0.0003406,92369.0,92341.0,0.52588185]
[1740998173346,0.0003406,92369.0,92364.0,0.25554085]
[1740998173977,0.0003406,92369.0,92364.0,0.55554085]
[1740998174228,0.0003406,92369.0,92364.0,0.55454085]
[1740998174433,0.0003406,92369.0,92364.0,0.60084085]
[1740998174575,0.00074018,92365.0,92364.0,0.60084085]
[1740998174790,0.00074018,92365.0,92364.0,0.61204564]
[1740998175827,0.00074018,92365.0,92364.0,0.61304564]
[1740998176025,0.00074018,92365.0,92364.0,0.68940564]
[1740998176267,0.00074018,92365.0,92364.0,0.68840564]
[1740998176556,0.00074018,92365.0,92364.0,0.49214564]
[1740998182586,0.00074018,92365.0,92364.0,0.48714564]
[1740998182992,0.00074018,92365.0,92364.0,0.49314564]
[1740998183588,0.00074018,92365.0,92364.0,0.49831594]
[1740998190475,0.00074018,92365.0,92364.0,0.48711115]
[1740998190794,0.00074018,92365.0,92364.0,0.1837161]
[1740998190955,0.00074018,92365.0,92364.0,0.1725703]
[1740998191157,0.00074018,92365.0,92364.0,0.18862674]
[1740998191359,0.00074018,92365.0,92364.0,0.19812571]
[1740998191556,0.00074018,92365.0,92364.0,0.19964129]
[1740998191975,0.00074018,92365.0,92364.0,0.18711115]
[1740998192815,0.00074018,92365.0,92364.0,0.02571115]
[1740998193171,0.00074018,92365.0,92364.0,0.18811115]
[1740998193911,0.00074018,92365.0,92364.0,0.0111703]
[1740998194114,0.00074018,92365.0,92364.0,0.1625703]
[1740998194329,0.00074018,92365.0,92364.0,0.17711115]
[1740998194577,0.00074018,92365.0,92364.0,0.18011115]
[1740998194758,0.00074018,92365.0,92364.0,0.50921115]
[1740998194967,0.00074018,92365.0,92364.0,0.80921115]
[1740998195140,0.00074018,92365.0,92364.0,0.87961115]
[1740998195469,0.00074018,92365.0,92364.0,0.88661115]
[1740998195881,0.00074018,92365.0,92364.0,0.88261115]
[1740998196072,0.00074018,92365.0,92364.0,0.87961115]
[1740998196703,0.00074018,92365.0,92364.0,0.88561115]
[1740998197767,0.00074018,92365.0,92364.0,0.87961115]
[1740998197986,0.00074018,92365.0,92364.0,0.88661115]
[1740998198159,0.00074018,92365.0,92364.0,0.89361115]
[1740998198367,1.8e-07,92365.0,92364.0,0.96293115]
[1740998198777,1.8e-07,92365.0,92364.0,0.97693115]
[1740998198970,1.8e-07,92365.0,92364.0,0.96293115]
[1740998199172,1.8e-07,92365.0,92364.0,0.95593115]
[1740998199373,1.8e-07,92365.0,92364.0,0.96293115]
[1740998200826,1.8e-07,92365.0,92364.0,0.98309722]
[1740998201106,7.8e-07,92369.0,92368.0,0.540293]
[1740998201260,2.3e-07,92369.0,92368.0,0.55483385]
[1740998202219,2.3e-07,92369.0,92368.0,0.56183385]
[1740998202426,0.0003408,92375.0,92368.0,0.56183385]
[1740998202427,3e-08,92375.0,92374.0,0.462383]
[1740998202627,3e-08,92375.0,92374.0,0.47692385]
[1740998203052,3e-08,92375.0,92374.0,0.49708992]
[1740998203253,3e-08,92375.0,92374.0,0.67458992]
[1740998203532,3e-08,92375.0,92374.0,0.62458992]
[1740998204368,3e-08,92375.0,92374.0,0.62958992]
[1740998204964,3e-08,92375.0,92374.0,0.63658992]
[1740998205150,3e-08,92375.0,92374.0,0.63158992]
[1740998205349,3e-08,92375.0,92374.0,0.63858992]
[1740998206602,3e-08,92375.0,92374.0,0.68858992]
[1740998206777,0.0003408,92418.0,92376.0,0.05]
[1740998206981,0.00046068,92409.0,92408.0,0.162323]
[1740998207222,0.00046068,92409.0,92408.0,0.17686385]
[1740998208591,0.00046068,92409.0,92408.0,0.1876896]
[1740998208813,0.00046068,92409.0,92408.0,0.17686385]
[1740998209289,0.00046068,92409.0,92408.0,0.17786385]
[1740998210092,0.01743745,92409.0,92408.0,0.17786385]
[1740998211998,0.00046068,92409.0,92408.0,0.17786385]
[1740998212356,0.00046068,92409.0,92408.0,0.01554085]
[1740998212541,0.00046068,92409.0,92408.0,0.163323]
[1740998212739,0.00046068,92409.0,92408.0,0.001]
[1740998212935,0.00046068,92409.0,92408.0,0.163323]
[1740998213391,0.01743813,92409.0,92408.0,0.163323]
[1740998213896,0.01743813,92409.0,92408.0,0.17786385]
[1740998215101,0.01743813,92409.0,92408.0,0.17686385]
[1740998215298,0.01743813,92409.0,92408.0,0.17786385]
[1740998215959,0.00046068,92409.0,92408.0,0.17786385]
[1740998216359,0.00046068,92409.0,92408.0,0.17937864]
[1740998217015,0.00046068,92409.0,92408.0,0.17786385]
[1740998217447,0.00046068,92409.0,92408.0,0.17937864]
[1740998217857,0.00046068,92409.0,92408.0,0.25697864]
[1740998218057,0.00046068,92409.0,92408.0,0.88256385]
[1740998218851,0.00046068,92409.0,92408.0,0.90271455]
[1740998219052,0.00046068,92409.0,92408.0,0.82511455]
[1740998220036,0.00046068,92409.0,92408.0,0.82911455]
[1740998221046,0.00046068,92409.0,92408.0,0.82811455]
[1740998221588,0.00046068,92409.0,92408.0,0.83311455]
[1740998226618,0.00046068,92409.0,92408.0,0.82911455]
[1740998227030,0.00046068,92409.0,92408.0,0.83511455]
[1740998227369,0.00046068,92409.0,92408.0,0.90641455]
[1740998227768,0.00046068,92409.0,92408.0,0.90841455]
[1740998228035,0.00046068,92409.0,92408.0,0.91541455]
[1740998228907,0.00046068,92409.0,92408.0,0.90841455]
[1740998229131,6.8e-07,92409.0,92408.0,0.94781455]
[1740998229337,4.8e-07,92419.0,92418.0,0.509206]
[1740998229514,4.8e-07,92419.0,92418.0,0.68298685]
[1740998229720,0.00111885,92445.0,92437.0,0.55281285]
[1740998229916,0.00015984,92438.0,92437.0,0.91228492]
[1740998230471,0.00015984,92438.0,92437.0,0.87991285]
[1740998230692,0.00015984,92438.0,92437.0,0.90006355]
[1740998231085,0.00015984,92438.0,92437.0,0.90306355]
[1740998231875,0.00015984,92438.0,92437.0,0.90706355]
[1740998232083,0.00015984,92438.0,92437.0,0.91788994]
[1740998234546,0.00015984,92438.0,92437.0,0.95026201]
[1740998234723,0.00015984,92438.0,92437.0,0.99616201]
[1740998235329,8.4e-07,92438.0,92437.0,0.96378994]
[1740998235609,0.0004,92459.0,92457.0,0.544937]
[1740998235826,0.0004,92459.0,92457.0,0.93337785]
[1740998236031,0.00074017,92458.0,92457.0,0.93337785]
[1740998236257,0.00074017,92458.0,92457.0,0.96004548]
[1740998236428,0.00074017,92458.0,92457.0,0.99241755]
[1740998236597,0.0003406,92462.0,92461.0,0.46223]
[1740998236809,0.0003406,92462.0,92461.0,0.69121055]
[1740998237475,0.0003406,92462.0,92461.0,0.63217085]
[1740998237680,0.0003406,92462.0,92461.0,0.66454292]
[1740998237895,0.0003406,92462.0,92461.0,0.65232155]
[1740998238430,0.0003406,92462.0,92461.0,0.65932155]
[1740998239320,0.0003406,92462.0,92461.0,1.53722155]
[1740998239551,0.0003406,92462.0,92461.0,1.56388918]
[1740998239785,0.0003406,92462.0,92461.0,1.59626125]
[1740998240033,0.0003406,92462.0,92461.0,1.58926125]
[1740998240191,0.0003406,92462.0,92461.0,1.59729117]
[1740998240399,0.0003406,92462.0,92461.0,1.60429117]
[1740998241042,0.0003406,92462.0,92461.0,1.59729117]
[1740998241466,0.0003406,92462.0,92461.0,1.60429117]
[1740998241827,6e-07,92462.0,92461.0,1.59729117]
[1740998242007,9e-07,92468.0,92467.0,0.47676085]
[1740998242213,0.00111885,92497.0,92487.0,0.05]
[1740998242214,9e-07,92492.0,92487.0,0.05]
[1740998242434,8.774e-05,92543.0,92542.0,0.162088]
[1740998242675,0.00297356,92543.0,92542.0,0.17662885]
[1740998242915,0.0170754,92543.0,92542.0,0.17662885]
[1740998243141,0.0170754,92543.0,92542.0,0.80372885]
[1740998243381,0.0170754,92543.0,92542.0,0.34164085]
[1740998243615,0.0170754,92543.0,92542.0,0.50372885]
[1740998243891,0.0170754,92543.0,92542.0,0.01454085]
[1740998245294,0.0170754,92543.0,92542.0,0.01554085]
[1740998245831,0.00011981,92543.0,92542.0,0.01454085]
[1740998246044,0.00011981,92543.0,92542.0,0.01654085]
[1740998246243,0.00011981,92543.0,92542.0,0.01954085]
[1740998246395,0.00011981,92543.0,92542.0,0.02105363]
[1740998246776,0.00011981,92543.0,92542.0,0.32105363]
[1740998246964,0.00011981,92543.0,92542.0,0.64664085]
[1740998247997,0.00011981,92543.0,92542.0,0.64364085]
[1740998248196,0.00011981,92543.0,92542.0,0.64164085]
[1740998248481,0.00011981,92543.0,92542.0,0.65564085]
[1740998248682,0.00011981,92543.0,92542.0,0.35564085]
[1740998249089,0.00011981,92543.0,92542.0,0.34864085]
[1740998251211,0.00011981,92543.0,92542.0,0.50372885]
[1740998251454,0.00011981,92543.0,92542.0,0.51072885]
[1740998251657,0.00011981,92543.0,92542.0,0.51772885]
[1740998251834,0.00011981,92543.0,92542.0,0.51072885]
[1740998252037,0.00011981,92543.0,92542.0,0.80372885]
[1740998252255,0.00011981,92543.0,92542.0,0.81772885]
[1740998253439,0.00011981,92543.0,92542.0,0.176088]
[1740998253885,0.00011981,92543.0,92542.0,0.19214159]
[1740998254777,0.00011981,92543.0,92542.0,0.81924159]
[1740998254992,8.1e-07,92543.0,92542.0,0.81772885]
[1740998255424,8.1e-07,92543.0,92542.0,0.89512885]
[1740998255794,8.1e-07,92543.0,92542.0,0.97154905]
[1740998255990,0.00017091,92543.0,92542.0,0.97154905]
[1740998258319,9.1e-07,92543.0,92542.0,0.97964744]
[1740998259076,9.1e-07,92543.0,92542.0,1.02794744]
[1740998259341,3.1e-07,92555.0,92554.0,0.162067]
[1740998259498,0.0004,92579.0,92555.0,0.01454085]
[1740998259662,0.00079898,92579.0,92578.0,0.162025]
[1740998259871,0.00079898,92579.0,92578.0,0.489125]
[1740998260498,0.00079898,92579.0,92578.0,0.51470741]
[1740998261255,0.00079898,92579.0,92578.0,0.52070741]
[1740998261642,0.00079898,92579.0,92578.0,0.51566585]
[1740998261843,0.00079898,92579.0,92578.0,0.35364085]
[1740998262069,0.00079898,92579.0,92578.0,0.51566585]
[1740998263608,0.00079898,92579.0,92578.0,0.18856585]
[1740998263823,0.00079898,92579.0,92578.0,0.48856585]
[1740998269100,0.00096908,92579.0,92578.0,0.48856585]
[1740998269294,0.20521732,92600.0,92583.0,0.462016]
[1740998269295,9.8e-07,92584.0,92583.0,0.462016]
[1740998269511,6.2e-07,92584.0,92583.0,0.47655685]
[1740998269658,6.2e-07,92584.0,92583.0,0.55259685]
[1740998270716,6.2e-07,92584.0,92583.0,0.57257622]
[1740998271055,6.2e-07,92584.0,92583.0,0.49653622]
[1740998271221,6.2e-07,92584.0,92583.0,0.57957622]
[1740998271619,6.2e-07,92584.0,92583.0,0.50353622]
[1740998271825,6.2e-07,92584.0,92583.0,0.57957622]
[1740998272049,6.2e-07,92584.0,92583.0,0.91167622]
[1740998272406,6.2e-07,92584.0,92583.0,0.90667622]
[1740998272613,6.2e-07,92584.0,92583.0,0.91367622]
[1740998273013,0.188273,92600.0,92583.0,0.91367622]
[1740998273014,0.188273,92600.0,92599.0,0.461988]
[1740998273316,0.0169422,92628.0,92599.0,0.461988]
[1740998273317,0.0169422,92628.0,92608.0,0.161973]
[1740998273517,6.9e-07,92609.0,92608.0,0.17651385]
[1740998273774,6.9e-07,92609.0,92608.0,0.17802515]
[1740998274136,6.9e-07,92609.0,92608.0,0.1777423]
[1740998274654,6.9e-07,92609.0,92608.0,0.20472167]
[1740998276386,6.9e-07,92609.0,92608.0,0.21172167]
[1740998276587,6.9e-07,92609.0,92608.0,0.28776167]
[1740998276746,6.9e-07,92609.0,92608.0,0.28625037]
[1740998276947,6.9e-07,92609.0,92608.0,0.27925037]
[1740998277148,6.9e-07,92609.0,92608.0,0.28625037]
[1740998277347,6.9e-07,92609.0,92608.0,0.33481037]
[1740998277775,6.9e-07,92609.0,92608.0,0.62781037]
[1740998278347,6.9e-07,92609.0,92608.0,0.63481037]
[1740998278574,6.9e-07,92609.0,92608.0,0.62781037]
[1740998278919,6.9e-07,92609.0,92608.0,0.63481037]
[1740998279232,6.9e-07,92609.0,92608.0,0.81576952]
[1740998279456,6.9e-07,92609.0,92608.0,0.48866952]
[1740998279656,6.9e-07,92609.0,92608.0,0.49566952]
[1740998279858,6.9e-07,92609.0,92608.0,0.48866952]
[1740998280068,6.9e-07,92609.0,92608.0,0.49566952]
[1740998280320,6.9e-07,92609.0,92608.0,0.51021037]
[1740998280795,6.9e-07,92609.0,92608.0,0.50321037]
[1740998281000,0.00017069,92609.0,92608.0,0.51021037]
[1740998281443,6.9e-07,92609.0,92608.0,0.96041037]
[1740998281701,0.00111765,92641.0,92608.0,0.96041037]
[1740998281702,2e-07,92636.0,92635.0,0.47646585]
[1740998281912,7e-05,92643.0,92642.0,0.161913]
[1740998282123,7e-05,92643.0,92642.0,0.17645385]
[1740998282293,0.00018967,92643.0,92642.0,0.18718952]
[1740998282494,0.00018967,92643.0,92642.0,0.20716889]
[1740998283142,0.00018967,92643.0,92642.0,0.03452022]
[1740998283344,0.00018967,92643.0,92642.0,0.01997937]
[1740998283464,0.01712558,92643.0,92642.0,0.01997937]
[1740998283661,0.01702558,92643.0,92642.0,0.01997937]
[1740998284078,0.01702558,92643.0,92642.0,0.17645385]
[1740998284420,0.01702558,92643.0,92642.0,0.01954085]
[1740998284627,0.17893658,92643.0,92642.0,0.02654085]
[1740998284853,0.17893658,92643.0,92642.0,0.02154085]
[1740998285001,0.01702558,92643.0,92642.0,0.01454085]
[1740998285403,0.01702558,92643.0,92642.0,0.17945385]
[1740998285660,0.01702558,92643.0,92642.0,0.01754085]
[1740998286001,0.01702558,92643.0,92642.0,0.01854085]
[1740998286121,0.01702558,92643.0,92642.0,0.02054085]
[1740998286336,0.01702558,92643.0,92642.0,0.01654085]